[Event "CZE-ch 2020"]
[Site "Pilsen"]
[Date "2020.08.23"]
[Round "1.35"]
[White "Nemec, Pavel"]
[Black "Nemcova, Karin"]
[Result "1/2-1/2"]
[ECO "B47"]
[WhiteElo "2243"]
[BlackElo "1983"]
[Annotator "ChessBase"]
[PlyCount "161"]
[EventDate "2020.08.23"]
[EventType "swiss"]
[EventCountry "CZE"]
[SourceTitle "playchess.com"]
[Source "ChessBase"]
[SourceQuality "1"]
[TimeControl "40/5400+30:1800+30"]

1. e4 {[%emt 0:00:00]} c5 {[%emt 0:00:02]} 2. Nf3 {[%emt 0:00:00]} e6 {[%emt 0:00:12]} 3. d4 {[%emt 0:00:48]} cxd4 {[%emt 0:00:08]} 4. Nxd4 {[%emt 0:00:05]} Nc6 {[%emt 0:00:09]} 5. Nc3 {[%emt 0:00:39]} Qc7 {[%emt 0:00:18]} 6. Nxc6 {[%emt 0:01:25]} bxc6 {[%emt 0:00:40]} 7. Bd3 {[%emt 0:00:08]} Nf6 {[%emt 0:01:58]} 8. O-O {[%emt 0:00:38]} d5 {[%emt 0:01:38]} 9. Qe2 {[%emt 0:00:35]} Be7 {[%emt 0:07:25]} 10. e5 {[%emt 0:08:27]} Nd7 {[%emt 0:00:18]} 11. Bf4 {[%emt 0:01:22]} Nc5 {[%emt 0:03:10]} 12. Qg4 {[%emt 0:01:47]} Nxd3 {[%emt 0:02:53]} 13. cxd3 {[%emt 0:00:24]} g6 {[%emt 0:03:57]} 14. Rac1 {[%emt 0:02:37]} Rb8 {[%emt 0:00:53]} 15. b3 {[%emt 0:04:18]} g5 {[%emt 0:05:16]} 16. Be3 {[%emt 0:02:13]} h5 {[%emt 0:04:05]} 17. Qg3 {[%emt 0:01:47]} Rg8 {[%emt 0:16:09]} 18. f4 {[%emt 0:11:38]} g4 {[%emt 0:02:28]} 19. Qf2 {[%emt 0:08:53]} a5 {[%emt 0:02:47]} 20. Na4 {[%emt 0:00:33]} g3 {[%emt 0:15:17]} 21. hxg3 {[%emt 0:00:25]} Ba6 {[%emt 0:01:46]} 22. Rfd1 {[%emt 0:02:11]} Rg4 {[%emt 0:02:27]} 23. Nc5 {[%emt 0:07:49]} Bc8 {[%emt 0:00:57]} 24. Qf3 {[%emt 0:04:42]} f5 {[%emt 0:03:30]} 25. Bf2 {[%emt 0:07:06]} Bf8 {[%emt 0:02:46]} 26. Kh2 {[%emt 0:13:29]} Bh6 {[%emt 0:05:02]} 27. Rh1 {[%emt 0:00:12]} Qg7 {[%emt 0:03:50]} 28. Kg1 {[%emt 0:00:14]} Qg6 {[%emt 0:00:34]} 29. Be1 {[%emt 0:00:58]} Ra8 {[%emt 0:01:33]} 30. Kf2 {[%emt 0:01:21]} Ra7 {[%emt 0:00:22]} 31. Rh4 {[%emt 0:03:17]} Bxf4 {[%emt 0:01:43]} 32. Rxg4 {[%emt 0:00:21]} fxg4 {[%emt 0:00:07]} 33. Qxf4 {[%emt 0:00:37]} Rf7 {[%emt 0:00:08]} 34. Bd2 {[%emt 0:00:59]} Rf5 {[%emt 0:01:51]} 35. Ke2 {[%emt 0:02:16]} Rxf4 {[%emt 0:00:10]} 36. Bxf4 {[%emt 0:00:16]} Qf7 {[%emt 0:01:01]} 37. Rh1 {[%emt 0:00:53]} d4 {[%emt 0:01:22]} 38. Ne4 {[%emt 0:00:24]} Kd8 {[%emt 0:01:38]} 39. Nf6 {[%emt 0:01:37]} Kc7 {[%emt 0:00:09]} 40. Rxh5 {[%emt 0:00:43]} Kb6 {[%emt 0:00:21]} 41. Rh8 {[%emt 0:35:44]} Ba6 {[%emt 0:33:20]} 42. Rd8 {[%emt 0:00:24]} Qe7 {[%emt 0:00:58]} 43. Rd6 {[%emt 0:01:00]} Bc8 {[%emt 0:01:39]} 44. Nxg4 {[%emt 0:03:12]} Qh7 {[%emt 0:00:58]} 45. Nf2 {[%emt 0:00:34]} Qh2 {[%emt 0:02:20]} 46. Rxd4 {[%emt 0:02:21]} Qxg2 {[%emt 0:00:28]} 47. Be3 {[%emt 0:00:00]} Kc7 {[%emt 0:00:00]} 48. g4 {[%emt 0:00:00]} Bd7 {[%emt 0:00:00]} 49. Bd2 {[%emt 0:00:00]} a4 {[%emt 0:00:00]} 50. Rxa4 {[%emt 0:00:00]} c5 {[%emt 0:00:00]} 51. Rc4 {[%emt 0:00:00]} Qd5 {[%emt 0:00:00]} 52. Be3 {[%emt 0:00:00]} Qa8 {[%emt 0:00:00]} 53. Rxc5+ {[%emt 0:00:00]} Bc6 {[%emt 0:00:00]} 54. a4 {[%emt 0:00:00]} Qb7 {[%emt 0:00:00]} 55. Rc3 {[%emt 0:00:00]} Qb4 {[%emt 0:00:00]} 56. Ne4 {[%emt 0:00:00]} Kb7 {[%emt 0:00:00]} 57. Nc5+ {[%emt 0:00:00]} Ka8 {[%emt 0:00:00]} 58. Rc4 {[%emt 0:00:00]} Qa3 {[%emt 0:00:00]} 59. Rc2 {[%emt 0:00:00]} Qb4 {[%emt 0:00:00]} 60. g5 {[%emt 0:00:00]} Qg4+ {[%emt 0:00:00]} 61. Kd2 {[%emt 0:00:00]} Qg2+ {[%emt 0:00:00]} 62. Kc3 {[%emt 0:00:00]} Qg3 {[%emt 0:00:00]} 63. Bd4 {[%emt 0:00:00]} Bd5 {[%emt 0:00:00]} 64. Rf2 {[%emt 0:00:00]} Kb8 {[%emt 0:00:00]} 65. Na6+ {[%emt 0:00:00]} Kc8 {[%emt 0:00:00]} 66. Nb4 {[%emt 0:01:39]} Qxg5 {[%emt 0:00:00]} 67. Nxd5 {[%emt 0:00:26]} exd5 {[%emt 0:00:00]} 68. Rc2 {[%emt 0:02:54]} Kb7 {[%emt 0:00:59]} 69. b4 {[%emt 0:00:50]} Qh4 {[%emt 0:00:49]} 70. b5 {[%emt 0:01:46]} Qe1+ {[%emt 0:00:29]} 71. Kb3 {[%emt 0:00:27]} Qd1 {[%emt 0:00:16]} 72. Bc3 {[%emt 0:01:48]} Qxd3 {[%emt 0:00:27]} 73. Rd2 {[%emt 0:01:23]} Qc4+ {[%emt 0:01:15]} 74. Kb2 {[%emt 0:00:01]} Qxa4 {[%emt 0:00:10]} 75. Rxd5 {[%emt 0:00:09]} Qc4 {[%emt 0:00:18]} 76. Rd4 {[%emt 0:00:20]} Qe2+ {[%emt 0:02:30]} 77. Ka3 {[%emt 0:00:05]} Kb6 {[%emt 0:00:25]} 78. Rb4 {[%emt 0:00:35]} Qd3 {[%emt 0:00:56]} 79. Rb3 {[%emt 0:00:20]} Qd5 {[%emt 0:00:18]} 80. Ka2 {[%emt 0:01:04]} Qe4 {[%emt 0:00:39]} 81. Ka3 {[%emt 0:00:43]} 1/2-1/2

[Event "CZE-ch 2020"]
[Site "Pilsen"]
[Date "2020.08.23"]
[Round "1.36"]
[White "Janous, Marek"]
[Black "Kusa, Jakub"]
[Result "0-1"]
[ECO "C56"]
[WhiteElo "1968"]
[BlackElo "2239"]
[Annotator "ChessBase"]
[PlyCount "162"]
[EventDate "2020.08.23"]
[EventType "swiss"]
[EventCountry "CZE"]
[SourceTitle "playchess.com"]
[Source "ChessBase"]
[SourceQuality "1"]
[TimeControl "40/5400+30:1800+30"]

1. e4 {[%emt 0:00:00]} e5 {[%emt 0:00:00]} 2. Nf3 {[%emt 0:00:03]} Nc6 {[%emt 0:00:00]} 3. d4 {[%emt 0:04:17]} exd4 {[%emt 0:00:01]} 4. Bc4 {[%emt 0:01:17]} Nf6 {[%emt 0:00:15]} 5. O-O {[%emt 0:00:30]} Nxe4 {[%emt 0:00:40]} 6. Re1 {[%emt 0:00:21]} d5 {[%emt 0:00:50]} 7. Bxd5 {[%emt 0:00:15]} Qxd5 {[%emt 0:00:07]} 8. Nc3 {[%emt 0:00:25]} Qd7 {[%emt 0:00:48]} 9. Nxe4 {[%emt 0:11:52]} Be7 {[%emt 0:00:31]} 10. Bg5 {[%emt 0:00:23]} O-O {[%emt 0:01:15]} 11. Bxe7 {[%emt 0:01:18]} Qxe7 {[%emt 0:02:53]} 12. Nxd4 {[%emt 0:01:09]} Nxd4 {[%emt 0:03:38]} 13. Qxd4 {[%emt 0:00:21]} b6 {[%emt 0:06:15]} 14. Ng3 {[%emt 0:07:14]} Be6 {[%emt 0:09:12]} 15. Qe5 {[%emt 0:08:47]} Rfe8 {[%emt 0:05:35]} 16. Re3 {[%emt 0:06:08]} f6 {[%emt 0:02:23]} 17. Qc3 {[%emt 0:01:08]} Qf7 {[%emt 0:01:55]} 18. Rae1 {[%emt 0:01:14]} Rad8 {[%emt 0:03:34]} 19. h3 {[%emt 0:01:40]} c5 {[%emt 0:06:12]} 20. a4 {[%emt 0:02:54]} Bd5 {[%emt 0:04:11]} 21. a5 {[%emt 0:05:14]} Rxe3 {[%emt 0:08:51]} 22. Qxe3 {[%emt 0:02:06]} Bc6 {[%emt 0:02:03]} 23. axb6 {[%emt 0:01:01]} axb6 {[%emt 0:00:17]} 24. Nf5 {[%emt 0:04:01]} Re8 {[%emt 0:04:07]} 25. Qd2 {[%emt 0:01:21]} Rxe1+ {[%emt 0:03:02]} 26. Qxe1 {[%emt 0:00:05]} Kf8 {[%emt 0:01:06]} 27. Qd2 {[%emt 0:02:05]} Qd5 {[%emt 0:01:44]} 28. Qxd5 {[%emt 0:00:37]} Bxd5 {[%emt 0:00:01]} 29. Ne3 {[%emt 0:00:13]} Be6 {[%emt 0:00:37]} 30. Kf1 {[%emt 0:00:22]} g5 {[%emt 0:01:55]} 31. g4 {[%emt 0:01:33]} Ke7 {[%emt 0:01:10]} 32. Kg2 {[%emt 0:02:15]} Kd6 {[%emt 0:00:32]} 33. c3 {[%emt 0:01:00]} Ke5 {[%emt 0:01:24]} 34. f3 {[%emt 0:02:27]} b5 {[%emt 0:02:38]} 35. Kg3 {[%emt 0:01:03]} b4 {[%emt 0:02:56]} 36. Nf1 {[%emt 0:02:49]} f5 {[%emt 0:03:03]} 37. Nd2 {[%emt 0:00:47]} Bd5 {[%emt 0:01:27]} 38. Nf1 {[%emt 0:03:43]} f4+ {[%emt 0:07:25]} 39. Kf2 {[%emt 0:00:19]} Bc4 {[%emt 0:00:14]} 40. Nd2 {[%emt 0:00:19]} Bd3 {[%emt 0:00:40]} 41. Kg2 {[%emt 0:31:43]} bxc3 {[%emt 0:30:45]} 42. bxc3 {[%emt 0:00:16]} c4 {[%emt 0:02:15]} 43. Kh2 {[%emt 0:00:27]} Kd5 {[%emt 0:00:14]} 44. Kg2 {[%emt 0:00:25]} Kc5 {[%emt 0:00:26]} 45. h4 {[%emt 0:00:30]} h6 {[%emt 0:02:02]} 46. hxg5 {[%emt 0:00:07]} hxg5 {[%emt 0:00:27]} 47. Kf2 {[%emt 0:00:20]} Kb5 {[%emt 0:01:07]} 48. Ke1 {[%emt 0:00:15]} Ka4 {[%emt 0:01:00]} 49. Kf2 {[%emt 0:00:03]} Ka3 {[%emt 0:01:59]} 50. Kg2 {[%emt 0:01:48]} Kb2 {[%emt 0:01:26]} 51. Ne4 {[%emt 0:00:36]} Bxe4 {[%emt 0:01:07]} 52. fxe4 {[%emt 0:00:07]} Kxc3 {[%emt 0:00:06]} 53. e5 {[%emt 0:00:05]} Kd2 {[%emt 0:00:29]} 54. e6 {[%emt 0:00:20]} c3 {[%emt 0:00:08]} 55. e7 {[%emt 0:00:02]} c2 {[%emt 0:00:13]} 56. e8=Q {[%emt 0:00:42]} c1=Q {[%emt 0:00:13]} 57. Qe5 {[%emt 0:03:43]} Kd1 {[%emt 0:02:38]} 58. Kf1 {[%emt 0:01:39]} Qc4+ {[%emt 0:00:42]} 59. Kf2 {[%emt 0:00:40]} Qa2+ {[%emt 0:02:53]} 60. Kf1 {[%emt 0:00:32]} Qa6+ {[%emt 0:00:44]} 61. Kf2 {[%emt 0:01:09]} Qb6+ {[%emt 0:00:25]} 62. Kf1 {[%emt 0:00:24]} Qd8 {[%emt 0:02:50]} 63. Qa1+ {[%emt 0:01:01]} Kd2 {[%emt 0:00:50]} 64. Qb2+ {[%emt 0:00:17]} Kd3 {[%emt 0:00:52]} 65. Qe2+ {[%emt 0:03:45]} Kc3 {[%emt 0:00:12]} 66. Qe5+ {[%emt 0:01:13]} Kc4 {[%emt 0:00:16]} 67. Qe4+ {[%emt 0:04:12]} Qd4 {[%emt 0:00:30]} 68. Qc2+ {[%emt 0:00:24]} Kb4 {[%emt 0:00:18]} 69. Qb1+ {[%emt 0:00:29]} Kc3 {[%emt 0:00:49]} 70. Qc1+ {[%emt 0:00:37]} Kd3 {[%emt 0:00:44]} 71. Qd1+ {[%emt 0:00:31]} Ke4 {[%emt 0:00:12]} 72. Qe2+ {[%emt 0:00:19]} Qe3 {[%emt 0:00:23]} 73. Qc4+ {[%emt 0:00:12]} Kf3 {[%emt 0:00:49]} 74. Qd5+ {[%emt 0:01:22]} Kg3 {[%emt 0:00:55]} 75. Qg2+ {[%emt 0:02:30]} Kh4 {[%emt 0:00:02]} 76. Qd5 {[%emt 0:01:08]} Qh3+ {[%emt 0:00:29]} 77. Kg1 {[%emt 0:00:25]} Qxg4+ {[%emt 0:00:09]} 78. Kh2 {[%emt 0:00:55]} f3 {[%emt 0:00:29]} 79. Qd2 {[%emt 0:00:45]} Qg2+ {[%emt 0:00:57]} 80. Qxg2 {[%emt 0:00:07]} fxg2 {[%emt 0:00:06]} 81. Kxg2 {[%emt 0:00:12]} Kg4 {[%emt 0:00:02]} 0-1

[Event "CZE-ch 2020"]
[Site "Pilsen"]
[Date "2020.08.23"]
[Round "1.37"]
[White "Jurek, Josef"]
[Black "Paseka, Matyas"]
[Result "1-0"]
[ECO "E64"]
[WhiteElo "2234"]
[BlackElo "1959"]
[Annotator "ChessBase"]
[PlyCount "87"]
[EventDate "2020.08.23"]
[EventType "swiss"]
[EventCountry "CZE"]
[SourceTitle "playchess.com"]
[Source "ChessBase"]
[SourceQuality "1"]
[TimeControl "40/5400+30:1800+30"]

1. Nf3 {[%emt 0:00:00]} Nf6 {[%emt 0:00:00]} 2. c4 {[%emt 0:00:00]} g6 {[%emt 0:00:00]} 3. d4 {[%emt 0:00:05]} Bg7 {[%emt 0:00:08]} 4. g3 {[%emt 0:00:21]} O-O {[%emt 0:00:09]} 5. Bg2 {[%emt 0:00:13]} d6 {[%emt 0:00:15]} 6. Nc3 {[%emt 0:00:16]} c5 {[%emt 0:00:31]} 7. dxc5 {[%emt 0:02:32]} dxc5 {[%emt 0:00:24]} 8. Be3 {[%emt 0:01:25]} Qa5 {[%emt 0:06:26]} 9. Qa4 {[%emt 0:00:32]} Qb4 {[%emt 0:04:59]} 10. Qxb4 {[%emt 0:08:29]} cxb4 {[%emt 0:00:11]} 11. Nb5 {[%emt 0:00:45]} Nc6 {[%emt 0:02:32]} 12. Rd1 {[%emt 0:11:55]} Ng4 {[%emt 0:07:49]} 13. Bc1 {[%emt 0:02:34]} a6 {[%emt 0:05:34]} 14. Nc7 {[%emt 0:01:32]} Rb8 {[%emt 0:00:11]} 15. Nd5 {[%emt 0:06:40]} b5 {[%emt 0:08:04]} 16. c5 {[%emt 0:04:02]} Bb7 {[%emt 0:01:10]} 17. O-O {[%emt 0:02:07]} Rfd8 {[%emt 0:10:46]} 18. e4 {[%emt 0:07:23]} e6 {[%emt 0:03:50]} 19. h3 {[%emt 0:01:12]} Nge5 {[%emt 0:05:24]} 20. Nxe5 {[%emt 0:03:14]} Bxe5 {[%emt 0:00:19]} 21. Bg5 {[%emt 0:03:57]} exd5 {[%emt 0:06:57]} 22. Bxd8 {[%emt 0:08:09]} Rxd8 {[%emt 0:06:04]} 23. exd5 {[%emt 0:00:34]} Na5 {[%emt 0:02:11]} 24. b3 {[%emt 0:03:42]} Kf8 {[%emt 0:03:06]} 25. Rfe1 {[%emt 0:01:03]} Bb8 {[%emt 0:01:04]} 26. Rd4 {[%emt 0:04:44]} Ba7 {[%emt 0:01:42]} 27. Rc1 {[%emt 0:03:02]} f5 {[%emt 0:09:29]} 28. Rxb4 {[%emt 0:01:13]} Rc8 {[%emt 0:03:13]} 29. c6 {[%emt 0:02:11]} Bb8 {[%emt 0:00:40]} 30. Re1 {[%emt 0:03:05]} Ba8 {[%emt 0:01:08]} 31. Rh4 {[%emt 0:01:53]} h5 {[%emt 0:01:21]} 32. Rd4 {[%emt 0:01:27]} Rd8 {[%emt 0:01:09]} 33. Rdd1 {[%emt 0:04:10]} Kf7 {[%emt 0:01:48]} 34. Rc1 {[%emt 0:01:07]} Bc7 {[%emt 0:00:27]} 35. Rc2 {[%emt 0:01:56]} Bd6 {[%emt 0:05:16]} 36. Rce2 {[%emt 0:02:02]} Bb4 {[%emt 0:00:42]} 37. Rc1 {[%emt 0:01:18]} Bd6 {[%emt 0:00:26]} 38. Re6 {[%emt 0:01:57]} Bxc6 {[%emt 0:03:00]} 39. Rxd6 {[%emt 0:00:21]} Rxd6 {[%emt 0:00:06]} 40. dxc6 {[%emt 0:00:16]} Rd8 {[%emt 0:00:14]} 41. Rc5 {[%emt 0:35:14]} Ke7 {[%emt 0:02:09]} 42. c7 {[%emt 0:00:00]} Rc8 {[%emt 0:01:02]} 43. b4 {[%emt 0:00:00]} Kd6 {[%emt 0:00:10]} 44. Rd5+ {[%emt 0:00:00]} 1-0

[Event "CZE-ch 2020"]
[Site "Pilsen"]
[Date "2020.08.24"]
[Round "2.2"]
[White "Stalmach, Richard"]
[Black "Babula, Vlastimil"]
[Result "1/2-1/2"]
[ECO "E47"]
[WhiteElo "2273"]
[BlackElo "2571"]
[Annotator "ChessBase"]
[PlyCount "85"]
[EventDate "2020.08.23"]
[EventType "swiss"]
[EventCountry "CZE"]
[SourceTitle "playchess.com"]
[Source "ChessBase"]
[SourceQuality "1"]
[TimeControl "40/5400+30:1800+30"]

1. d4 {[%emt 0:00:00]} Nf6 {[%emt 0:00:00]} 2. c4 {[%emt 0:00:00]} e6 {[%emt 0:00:01]} 3. Nc3 {[%emt 0:00:00]} Bb4 {[%emt 0:00:22]} 4. e3 {[%emt 0:00:00]} O-O {[%emt 0:01:12]} 5. Bd3 {[%emt 0:00:00]} b6 {[%emt 0:02:28]} 6. Nge2 {[%emt 0:00:46]} d5 {[%emt 0:00:48]} 7. cxd5 {[%emt 0:00:18]} exd5 {[%emt 0:00:41]} 8. a3 {[%emt 0:00:16]} Bd6 {[%emt 0:00:27]} 9. O-O {[%emt 0:00:46]} Re8 {[%emt 0:02:17]} 10. b4 {[%emt 0:00:50]} a6 {[%emt 0:04:23]} 11. f3 {[%emt 0:02:15]} c5 {[%emt 0:03:39]} 12. bxc5 {[%emt 0:01:10]} bxc5 {[%emt 0:00:04]} 13. e4 {[%emt 0:20:41]} cxd4 {[%emt 0:09:18]} 14. Nxd5 {[%emt 0:01:52]} Nxd5 {[%emt 0:00:36]} 15. exd5 {[%emt 0:00:04]} Bb7 {[%emt 0:01:08]} 16. Be4 {[%emt 0:12:12]} Be5 {[%emt 0:15:44]} 17. Nf4 {[%emt 0:16:28]} Bxf4 {[%emt 0:17:24]} 18. Bxf4 {[%emt 0:00:07]} Bxd5 {[%emt 0:00:12]} 19. Qxd4 {[%emt 0:00:59]} Bxe4 {[%emt 0:00:24]} 20. Qxd8 {[%emt 0:00:07]} Rxd8 {[%emt 0:00:05]} 21. fxe4 {[%emt 0:00:05]} Nc6 {[%emt 0:02:08]} 22. Rad1 {[%emt 0:05:36]} Nd4 {[%emt 0:10:23]} 23. Bc7 {[%emt 0:02:25]} Ne2+ {[%emt 0:01:09]} 24. Kf2 {[%emt 0:00:06]} Rxd1 {[%emt 0:00:13]} 25. Rxd1 {[%emt 0:00:04]} Nc3 {[%emt 0:00:07]} 26. Rd8+ {[%emt 0:00:39]} Rxd8 {[%emt 0:00:05]} 27. Bxd8 {[%emt 0:00:02]} Nxe4+ {[%emt 0:03:02]} 28. Ke3 {[%emt 0:00:08]} Nc5 {[%emt 0:02:13]} 29. Bb6 {[%emt 0:04:53]} Nd7 {[%emt 0:06:17]} 30. Bc7 {[%emt 0:00:05]} f5 {[%emt 0:01:18]} 31. Kd4 {[%emt 0:00:11]} Kf7 {[%emt 0:00:40]} 32. Kd5 {[%emt 0:00:36]} g5 {[%emt 0:01:51]} 33. a4 {[%emt 0:01:17]} f4 {[%emt 0:01:33]} 34. a5 {[%emt 0:03:20]} Nf6+ {[%emt 0:02:06]} 35. Kc6 {[%emt 0:00:15]} Ke6 {[%emt 0:01:19]} 36. Kb7 {[%emt 0:03:44]} Kd7 {[%emt 0:04:11]} 37. Bb8 {[%emt 0:07:59]} Nd5 {[%emt 0:02:03]} 38. Kxa6 {[%emt 0:00:35]} Kc6 {[%emt 0:00:50]} 39. h3 {[%emt 0:06:41]} Nb4+ {[%emt 0:02:58]} 40. Ka7 {[%emt 0:00:03]} Kb5 {[%emt 0:00:55]} 41. Bc7 {[%emt 0:30:26]} Nc6+ {[%emt 0:07:55]} 42. Kb7 {[%emt 0:00:00]} Nxa5+ {[%emt 0:00:07]} 43. Bxa5 {[%emt 0:00:00]} 1/2-1/2

[Event "CZE-ch 2020"]
[Site "Pilsen"]
[Date "2020.08.24"]
[Round "2.5"]
[White "Polak, Tomas"]
[Black "Klement, Lukas"]
[Result "1-0"]
[ECO "E46"]
[WhiteElo "2563"]
[BlackElo "2260"]
[Annotator "ChessBase"]
[PlyCount "75"]
[EventDate "2020.08.23"]
[EventType "swiss"]
[EventCountry "CZE"]
[SourceTitle "playchess.com"]
[Source "ChessBase"]
[SourceQuality "1"]
[TimeControl "40/5400+30:1800+30"]

1. d4 {[%emt 0:00:00]} Nf6 {[%emt 0:00:00]} 2. c4 {[%emt 0:00:00]} e6 {[%emt 0:00:00]} 3. Nc3 {[%emt 0:01:25]} Bb4 {[%emt 0:00:04]} 4. e3 {[%emt 0:00:23]} O-O {[%emt 0:00:20]} 5. Nge2 {[%emt 0:00:19]} Re8 {[%emt 0:00:32]} 6. a3 {[%emt 0:00:17]} Bf8 {[%emt 0:00:27]} 7. d5 {[%emt 0:05:13]} exd5 {[%emt 0:03:42]} 8. cxd5 {[%emt 0:00:12]} d6 {[%emt 0:00:18]} 9. Nd4 {[%emt 0:05:57]} c6 {[%emt 0:05:50]} 10. dxc6 {[%emt 0:07:26]} bxc6 {[%emt 0:11:14]} 11. Be2 {[%emt 0:00:52]} a5 {[%emt 0:07:45]} 12. O-O {[%emt 0:01:23]} Ba6 {[%emt 0:04:50]} 13. Bxa6 {[%emt 0:09:35]} Rxa6 {[%emt 0:01:13]} 14. Qd3 {[%emt 0:01:12]} d5 {[%emt 0:07:43]} 15. Bd2 {[%emt 0:06:00]} c5 {[%emt 0:05:40]} 16. Nf3 {[%emt 0:02:17]} c4 {[%emt 0:05:38]} 17. Qc2 {[%emt 0:02:15]} Nbd7 {[%emt 0:06:00]} 18. b3 {[%emt 0:05:14]} cxb3 {[%emt 0:15:29]} 19. Qxb3 {[%emt 0:00:28]} Nc5 {[%emt 0:00:11]} 20. Qa2 {[%emt 0:01:51]} Nfe4 {[%emt 0:02:29]} 21. Rad1 {[%emt 0:05:36]} Rf6 {[%emt 0:04:44]} 22. Ne2 {[%emt 0:04:39]} Bd6 {[%emt 0:04:23]} 23. Ng3 {[%emt 0:02:44]} Bxg3 {[%emt 0:01:50]} 24. hxg3 {[%emt 0:02:15]} Ree6 {[%emt 0:04:40]} 25. Be1 {[%emt 0:04:55]} Rd6 {[%emt 0:00:16]} 26. Qb2 {[%emt 0:00:33]} g5 {[%emt 0:06:09]} 27. Ne5 {[%emt 0:07:00]} Rfe6 {[%emt 0:01:01]} 28. f3 {[%emt 0:01:59]} Rb6 {[%emt 0:00:49]} 29. Qc2 {[%emt 0:03:38]} Rxe5 {[%emt 0:00:18]} 30. Bxa5 {[%emt 0:00:11]} Qd6 {[%emt 0:00:41]} 31. Bxb6 {[%emt 0:00:39]} Qxb6 {[%emt 0:00:01]} 32. Rb1 {[%emt 0:03:56]} Qd6 {[%emt 0:01:00]} 33. fxe4 {[%emt 0:00:21]} dxe4 {[%emt 0:00:28]} 34. Qc4 {[%emt 0:03:07]} Rd5 {[%emt 0:00:36]} 35. Rb8+ {[%emt 0:03:23]} Kg7 {[%emt 0:00:16]} 36. Rb6 {[%emt 0:00:15]} Qxb6 {[%emt 0:00:47]} 37. Qxd5 {[%emt 0:00:07]} h6 {[%emt 0:00:28]} 38. Qxf7+ {[%emt 0:00:40]} 1-0

[Event "CZE-ch 2020"]
[Site "Pilsen"]
[Date "2020.08.24"]
[Round "2.7"]
[White "Novotny, Michal"]
[Black "Finek, Vaclav"]
[Result "0-1"]
[ECO "A45"]
[WhiteElo "2246"]
[BlackElo "2344"]
[Annotator "ChessBase"]
[PlyCount "80"]
[EventDate "2020.08.23"]
[EventType "swiss"]
[EventCountry "CZE"]
[SourceTitle "playchess.com"]
[Source "ChessBase"]
[SourceQuality "1"]
[TimeControl "40/5400+30:1800+30"]

1. d4 {[%emt 0:00:51]} Nf6 {[%emt 0:00:00]} 2. Nc3 {[%emt 0:00:03]} d5 {[%emt 0:00:00]} 3. Bf4 {[%emt 0:00:01]} g6 {[%emt 0:00:22]} 4. e3 {[%emt 0:00:05]} Bg7 {[%emt 0:00:05]} 5. h4 {[%emt 0:00:02]} c5 {[%emt 0:01:44]} 6. Nb5 {[%emt 0:00:17]} Na6 {[%emt 0:02:29]} 7. c3 {[%emt 0:00:02]} Bd7 {[%emt 0:04:05]} 8. a4 {[%emt 0:01:48]} Qb6 {[%emt 0:05:52]} 9. dxc5 {[%emt 0:23:30]} Qxc5 {[%emt 0:01:56]} 10. Be5 {[%emt 0:00:10]} O-O {[%emt 0:06:21]} 11. Bd4 {[%emt 0:04:01]} Qc8 {[%emt 0:00:34]} 12. Nxa7 {[%emt 0:04:34]} Qb8 {[%emt 0:00:40]} 13. Nb5 {[%emt 0:01:22]} e5 {[%emt 0:00:15]} 14. Bb6 {[%emt 0:00:04]} Be6 {[%emt 0:05:04]} 15. a5 {[%emt 0:08:28]} Nd7 {[%emt 0:01:21]} 16. h5 {[%emt 0:01:23]} Nxb6 {[%emt 0:02:18]} 17. axb6 {[%emt 0:00:13]} Qd8 {[%emt 0:02:44]} 18. hxg6 {[%emt 0:01:30]} hxg6 {[%emt 0:02:29]} 19. Nf3 {[%emt 0:25:36]} Bf6 {[%emt 0:04:24]} 20. Be2 {[%emt 0:17:55]} Qxb6 {[%emt 0:02:29]} 21. O-O {[%emt 0:00:02]} Kg7 {[%emt 0:00:31]} 22. b4 {[%emt 0:00:34]} Rh8 {[%emt 0:05:35]} 23. Re1 {[%emt 0:05:31]} Rh6 {[%emt 0:04:54]} 24. Kf1 {[%emt 0:00:52]} Rh1+ {[%emt 0:03:05]} 25. Ng1 {[%emt 0:00:01]} Rah8 {[%emt 0:00:14]} 26. Ra5 {[%emt 0:00:36]} Qc6 {[%emt 0:04:39]} 27. e4 {[%emt 0:01:55]} Bd8 {[%emt 0:04:02]} 28. Ra3 {[%emt 0:01:34]} Bb6 {[%emt 0:02:52]} 29. Qa1 {[%emt 0:00:50]} Qe8 {[%emt 0:02:38]} 30. c4 {[%emt 0:00:37]} d4 {[%emt 0:09:54]} 31. c5 {[%emt 0:00:08]} Nxb4 {[%emt 0:04:57]} 32. cxb6 {[%emt 0:00:01]} Nc2 {[%emt 0:00:16]} 33. Qc1 {[%emt 0:00:36]} Nxe1 {[%emt 0:00:10]} 34. Qxe1 Qe7 {[%emt 0:02:25]} 35. Rg3 {[%emt 0:01:28]} Qh4 {[%emt 0:00:45]} 36. f3 {[%emt 0:00:01]} Qf4 {[%emt 0:01:26]} 37. Bd3 {[%emt 0:00:14]} R8h2 {[%emt 0:00:39]} 38. Nc7 {[%emt 0:01:14]} Bd7 {[%emt 0:04:21]} 39. Kf2 {[%emt 0:00:30]} Qh4 {[%emt 0:03:41]} 40. Qa5 {[%emt 0:00:00]} Rxg2+ {[%emt 0:00:57]} 0-1

[Event "CZE-ch 2020"]
[Site "Pilsen"]
[Date "2020.08.24"]
[Round "2.8"]
[White "Sorm, Daniel"]
[Black "Zeman, Matyas"]
[Result "1/2-1/2"]
[ECO "D35"]
[WhiteElo "2343"]
[BlackElo "2250"]
[Annotator "ChessBase"]
[PlyCount "83"]
[EventDate "2020.08.23"]
[EventType "swiss"]
[EventCountry "CZE"]
[SourceTitle "playchess.com"]
[Source "ChessBase"]
[SourceQuality "1"]
[TimeControl "40/5400+30:1800+30"]

1. d4 {[%emt 0:00:00]} d5 {[%emt 0:00:33]} 2. c4 {[%emt 0:00:28]} e6 {[%emt 0:00:10]} 3. Nc3 {[%emt 0:00:26]} Nf6 {[%emt 0:00:08]} 4. cxd5 {[%emt 0:00:18]} exd5 {[%emt 0:00:41]} 5. Bg5 {[%emt 0:00:40]} c6 {[%emt 0:00:09]} 6. e3 {[%emt 0:00:35]} Bf5 {[%emt 0:00:15]} 7. Qf3 {[%emt 0:00:24]} Bg6 {[%emt 0:00:10]} 8. Bxf6 {[%emt 0:00:07]} Qxf6 {[%emt 0:00:05]} 9. Qxf6 {[%emt 0:00:07]} gxf6 {[%emt 0:00:04]} 10. h4 {[%emt 0:07:39]} h5 {[%emt 0:00:18]} 11. Nh3 {[%emt 0:00:33]} Nd7 {[%emt 0:04:24]} 12. Kd2 {[%emt 0:06:54]} Nb6 {[%emt 0:04:45]} 13. b3 {[%emt 0:03:11]} Nc8 {[%emt 0:01:21]} 14. Bd3 {[%emt 0:01:16]} Bh6 {[%emt 0:00:48]} 15. g3 {[%emt 0:05:56]} Nd6 {[%emt 0:01:28]} 16. Nf4 {[%emt 0:01:04]} Bxf4 {[%emt 0:01:09]} 17. gxf4 {[%emt 0:00:28]} Bxd3 {[%emt 0:00:08]} 18. Kxd3 {[%emt 0:00:07]} Kd7 {[%emt 0:00:18]} 19. Rag1 {[%emt 0:20:40]} Rag8 {[%emt 0:01:56]} 20. e4 {[%emt 0:04:10]} dxe4+ {[%emt 0:00:35]} 21. Nxe4 {[%emt 0:00:05]} Nxe4 {[%emt 0:00:22]} 22. Kxe4 {[%emt 0:00:09]} Ke6 {[%emt 0:00:07]} 23. Re1 {[%emt 0:10:42]} Rg4 {[%emt 0:08:58]} 24. Re2 {[%emt 0:03:03]} Rhg8 {[%emt 0:12:48]} 25. f3 {[%emt 0:03:59]} Rg2 {[%emt 0:00:30]} 26. Rhe1 {[%emt 0:04:42]} Rxe2+ {[%emt 0:02:27]} 27. Rxe2 {[%emt 0:00:11]} Rg1 {[%emt 0:02:41]} 28. f5+ {[%emt 0:11:24]} Kd6 {[%emt 0:00:36]} 29. Kf4 {[%emt 0:00:27]} Kd7 {[%emt 0:02:58]} 30. Rd2 {[%emt 0:00:57]} Kd6 {[%emt 0:17:01]} 31. Re2 {[%emt 0:01:22]} Rg8 {[%emt 0:01:38]} 32. Rc2 {[%emt 0:05:37]} a5 {[%emt 0:01:59]} 33. a4 {[%emt 0:02:21]} Rg1 {[%emt 0:01:08]} 34. Rb2 {[%emt 0:03:34]} Rh1 {[%emt 0:07:13]} 35. b4 {[%emt 0:00:09]} Rxh4+ {[%emt 0:00:22]} 36. Ke3 {[%emt 0:00:07]} axb4 {[%emt 0:00:13]} 37. Rxb4 {[%emt 0:00:15]} Kc7 {[%emt 0:00:22]} 38. Rb1 {[%emt 0:01:46]} Rh2 {[%emt 0:03:09]} 39. Rg1 {[%emt 0:00:19]} Kd7 {[%emt 0:00:21]} 40. Rb1 {[%emt 0:01:07]} Kc7 {[%emt 0:00:25]} 41. Rg1 {[%emt 0:30:12]} Kd7 {[%emt 0:30:46]} 42. Ke4 1/2-1/2